fUST/lending_fUST_20240518
["ID","MTS","AMOUNT","RATE_DAILY","PERIOD"]
[327339352,1715997038891,-500.0,0.00016438,2]
[327339354,1715997038900,-505.01737576,0.00016438,2]
[327339356,1715997038909,-569.67921353,0.00016438,2]
[327339358,1715997038919,-507.179021,0.00016438,2]
[327339360,1715997038927,-508.14265655,0.00016438,2]
[327339362,1715997038937,-501.64098006,0.00016438,2]
[327339364,1715997038946,-503.90756558,0.00016438,2]
[327339366,1715997038955,-500.0,0.00016438,2]
[327339368,1715997038965,-500.0,0.00016438,2]
[327339370,1715997038974,-507.82262436,0.00016438,2]
[327339372,1715997038983,-503.39024486,0.00016438,2]
[327339374,1715997038993,-509.29819655,0.00016438,2]
[327339376,1715997039002,-500.68248343,0.00016438,2]
[327339378,1715997039011,-180.2188718,0.00016438,2]
[327339380,1715997039022,-524.32963427,0.00016438,2]
[327339382,1715997039032,-529.66015794,0.00016438,2]
[327339384,1715997039042,-503.91256356,0.00016438,2]
[327339386,1715997039053,-260.66813571,0.00016438,2]
[327339388,1715997039067,-501.86615196,0.00016438,2]
[327339390,1715997039077,-500.0,0.00016438,2]
[327339392,1715997039087,-506.3034766,0.00016438,2]
[327339394,1715997039098,-500.0,0.00016438,2]
[327339396,1715997039108,-505.60093693,0.00016438,2]
[327339398,1715997039118,-503.14623108,0.00016438,2]
[327339400,1715997039127,-501.92374078,0.00016438,2]
[327339402,1715997039139,-500.76054422,0.00016438,2]
[327339404,1715997039149,-504.53049449,0.00016438,2]
[327339406,1715997039158,-500.66892071,0.00016438,2]
[327339408,1715997039167,-500.0,0.00016438,2]
[327339410,1715997039177,-504.86585326,0.00016438,2]
[327339412,1715997039186,-504.02903503,0.00016438,2]
[327339414,1715997039195,-501.10097365,0.00016438,2]
[327339416,1715997039204,-500.0,0.00016438,2]
[327339418,1715997039214,-502.1350664,0.00016438,2]
[327339420,1715997039223,-518.06383436,0.00016438,2]
[327339422,1715997039233,-504.71041131,0.00016438,2]
[327339424,1715997039242,-671.22,0.00016438,2]
[327339426,1715997039251,-671.22,0.00016438,2]
[327339428,1715997039260,-671.22,0.00016438,2]
[327339430,1715997039270,-671.22,0.00016438,2]
[327339432,1715997039279,-671.22,0.00016438,2]
[327339434,1715997039289,-671.22,0.00016438,2]
[327339436,1715997039297,-502.63030316,0.00016438,2]
[327339438,1715997039307,-671.22,0.00016438,2]
[327339440,1715997039316,-671.22,0.00016438,2]
[327339441,1715997039326,-671.22,0.00016438,2]
[327339444,1715997039336,-510.85934954,0.00016438,2]
[327339446,1715997039345,-538.39920543,0.00016438,2]
[327339448,1715997039354,-500.0,0.00016438,2]
[327339450,1715997039366,-503.42853297,0.00016438,2]
[327339452,1715997039379,-590.62528277,0.00016438,2]
[327339455,1715997039392,-502.08295869,0.00016438,2]
[327339457,1715997039404,-357.51374573,0.00016438,2]
[327339459,1715997039416,-503.77447616,0.00016438,2]
[327339461,1715997039428,-504.45858188,0.00016438,2]
[327339464,1715997039439,-501.04863178,0.00016438,2]
[327339466,1715997039449,-500.0,0.00016438,2]
[327339468,1715997039461,-500.79516664,0.00016438,2]
[327339470,1715997039473,-504.3690316,0.00016438,2]
[327339472,1715997039485,-500.0,0.00016438,2]
[327339475,1715997039497,-501.8701262,0.00016438,2]
[327339477,1715997039510,-504.78609313,0.00016438,2]
[327339479,1715997039522,-500.0,0.00016438,2]
[327339481,1715997039533,-501.98348784,0.00016438,2]
[327339483,1715997039545,-299.40876376,0.00016438,2]
[327339485,1715997039558,-508.96475328,0.00016438,2]
[327339486,1715997039571,-505.90325461,0.00016438,2]
[327339487,1715997039584,-500.19544877,0.00016438,2]
[327339488,1715997039595,-500.0,0.00016438,2]
[327339489,1715997039607,-1000.0,0.00016438,2]
[327339490,1715997039618,-500.0,0.00016438,2]
[327339491,1715997039629,-502.2696945,0.00016438,2]
[327339492,1715997039639,-500.0,0.00016438,2]
[327339493,1715997039651,-500.0,0.00016438,2]
[327339494,1715997039663,-500.0,0.00016438,2]
[327339495,1715997039675,-500.0,0.00016438,2]
[327339496,1715997039686,-500.0,0.00016438,2]
[327339497,1715997039697,-500.0,0.00016438,2]
[327339498,1715997039708,-500.0,0.00016438,2]
[327339499,1715997039718,-503.35207021,0.00016438,2]
[327339501,1715997039729,-523.00134358,0.00016438,2]
[327339503,1715997039741,-501.31245709,0.00016438,2]
[327339505,1715997039752,-503.17044641,0.00016438,2]
[327339508,1715997039764,-503.56471971,0.00016438,2]
[327339510,1715997039779,-505.15317079,0.00016438,2]
[327339512,1715997039790,-502.69358955,0.00016438,2]
[327339515,1715997039803,-500.0,0.00016438,2]
[327339517,1715997039815,-503.94273132,0.00016438,2]
[327339519,1715997039829,-500.0,0.00016438,2]
[327339522,1715997039841,-500.0,0.00016438,2]
[327339524,1715997039853,-514.64272281,0.00016438,2]
[327339526,1715997039865,-500.0,0.00016438,2]
[327339528,1715997039875,-500.0,0.00016438,2]
[327339531,1715997039886,-500.0,0.00016438,2]
[327339532,1715997039897,-500.0,0.00016438,2]
[327339534,1715997039907,-500.0,0.00016438,2]
[327339536,1715997039918,-503.81819159,0.00016438,2]
[327339538,1715997039930,-500.0,0.00016438,2]
[327339540,1715997039941,-501.18967635,0.00016438,2]
[327339542,1715997039953,-514.64243649,0.00016438,2]
[327339545,1715997039965,-501.80590417,0.00016438,2]
[327339547,1715997039978,-512.00502879,0.00016438,2]
[327339550,1715997039990,-501.2323505,0.00016438,2]
[327339552,1715997040001,-501.58162823,0.00016438,2]
[327339554,1715997040012,-565.2586462,0.00016438,2]
[327339557,1715997040025,-502.61595629,0.00016438,2]
[327339559,1715997040035,-501.10910641,0.00016438,2]
[327339561,1715997040046,-503.70904018,0.00016438,2]
[327339563,1715997040062,-511.59873784,0.00016438,2]
[327339565,1715997040074,-372.24756509,0.00016438,2]
[327339567,1715997040085,-500.99087849,0.00016438,2]
[327339569,1715997040095,-500.0,0.00016438,2]
[327339571,1715997040106,-508.72561443,0.00016438,2]
[327339573,1715997040116,-502.13088383,0.00016438,2]
[327339575,1715997040126,-512.76382057,0.00016438,2]
[327339578,1715997040139,-505.19323275,0.00016438,2]
[327339580,1715997040149,-504.44179032,0.00016438,2]
[327339582,1715997040159,-502.05036398,0.00016438,2]
[327339584,1715997040170,-500.0,0.00016438,2]
[327339586,1715997040180,-511.21175295,0.00016438,2]
[327339588,1715997040191,-500.0,0.00016438,2]
[327339590,1715997040202,-505.25175662,0.00016438,2]
[327339592,1715997040213,-501.56839334,0.00016438,2]
[327339594,1715997040224,-501.17893466,0.00016438,2]
[327339596,1715997040234,-505.46397718,0.00016438,2]
[327339599,1715997040245,-506.50323748,0.00016438,2]
[327339601,1715997040255,-234.92087203,0.00016438,2]
[327339603,1715997040266,-502.19025893,0.00016438,2]
[327339605,1715997040278,-502.19920621,0.00016438,2]
[327339607,1715997040289,-506.52770784,0.00016438,2]
[327339609,1715997040299,-502.03869105,0.00016438,2]
[327339611,1715997040310,-501.63514118,0.00016438,2]
[327339613,1715997040321,-501.67118055,0.00016438,2]
[327339615,1715997040332,-503.58629594,0.00016438,2]
[327339618,1715997040343,-534.11558995,0.00016438,2]
[327339620,1715997040354,-501.8025543,0.00016438,2]
[327339622,1715997040364,-500.0,0.00016438,2]
[327339624,1715997040375,-500.0,0.00016438,2]
[327339625,1715997040386,-509.07167693,0.00016438,2]
[327339626,1715997040397,-501.15607277,0.00016438,2]
[327339627,1715997040408,-269.00562539,0.00016438,2]
[327339628,1715997040419,-506.23851799,0.00016438,2]
[327339629,1715997040430,-504.56600843,0.00016438,2]
[327339630,1715997040440,-513.49713772,0.00016438,2]
[327339631,1715997040451,-497.09165265,0.00016438,2]
[327339632,1715997040461,-501.50186471,0.00016438,2]
[327339633,1715997040473,-509.02999421,0.00016438,2]
[327339634,1715997040484,-500.80389508,0.00016438,2]
[327339635,1715997040494,-501.25576528,0.00016438,2]
[327339636,1715997040506,-502.21155139,0.00016438,2]
[327339637,1715997040516,-501.3686807,0.00016438,2]
[327339638,1715997040529,-2287.36,0.00016438,2]
[327339639,1715997040540,-508.03962986,0.00016438,2]
[327339640,1715997040550,-509.49216685,0.00016438,2]
[327339641,1715997040561,-501.92717773,0.00016438,2]
[327339642,1715997040572,-500.0,0.00016438,2]
[327339643,1715997040584,-501.97624276,0.00016438,2]
[327339644,1715997040595,-503.48114508,0.00016438,2]
[327339645,1715997040606,-4155.15,0.00016438,2]
[327339646,1715997040617,-501.33950526,0.00016438,2]
[327339647,1715997040628,-500.0,0.00016438,2]
[327339648,1715997040638,-504.26717806,0.00016438,2]
[327339649,1715997040649,-503.92729263,0.00016438,2]
[327339650,1715997040659,-503.90597654,0.00016438,2]
[327339652,1715997040670,-501.6085611,0.00016438,2]
[327339654,1715997040681,-500.0,0.00016438,2]
[327339656,1715997040692,-5652.97,0.00016438,2]
[327339658,1715997040703,-537.30098241,0.00016438,2]
[327339660,1715997040714,-500.0,0.00016438,2]
[327339661,1715997040725,-501.71443717,0.00016438,2]
[327339662,1715997040735,-500.0,0.00016438,2]
[327339663,1715997040746,-507.21335429,0.00016438,2]
[327339664,1715997040757,-514.30380022,0.00016438,2]
[327339665,1715997040768,-502.97511639,0.00016438,2]
[327339666,1715997040779,-502.40917785,0.00016438,2]
[327339668,1715997040790,-646.94021299,0.00016438,2]
[327339670,1715997040800,-502.59145835,0.00016438,2]
[327339672,1715997040811,-506.23635785,0.00016438,2]
[327339673,1715997040821,-506.10049472,0.00016438,2]
[327339675,1715997040832,-511.21113972,0.00016438,2]
[327339677,1715997040844,-500.0,0.00016438,2]
[327339678,1715997040855,-500.0,0.00016438,2]
[327339680,1715997040865,-504.13869779,0.00016438,2]
[327339686,1715997041022,-508.08832358,0.00016438,2]
[327339687,1715997041037,-502.15095282,0.00016438,2]
[327339688,1715997041047,-502.37017628,0.00016438,2]
[327339689,1715997041058,-588.8519439,0.00016438,2]
[327339690,1715997041069,-3161.82,0.00016438,2]
[327339691,1715997041079,-500.73076359,0.00016438,2]
[327339692,1715997041091,-500.0,0.00016438,2]
[327339693,1715997041102,-502.03716847,0.00016438,2]
[327339694,1715997041111,-501.27242285,0.00016438,2]
[327339695,1715997041120,-500.0,0.00016438,2]
[327339696,1715997041130,-510.1134858,0.00016438,2]
[327339697,1715997041140,-501.00130243,0.00016438,2]
[327339698,1715997041150,-500.0,0.00016438,2]
[327339699,1715997041160,-502.47710006,0.00016438,2]
[327339700,1715997041170,-505.54716985,0.00016438,2]
[327339701,1715997041179,-501.20631385,0.00016438,2]
[327339702,1715997041188,-507.76393073,0.00016438,2]
[327339703,1715997041197,-502.7989633,0.00016438,2]
[327339704,1715997041207,-500.0,0.00016438,2]
[327339705,1715997041217,-503.41415471,0.00016438,2]
[327339706,1715997041227,-500.72470488,0.00016438,2]
[327339707,1715997041236,-502.89071705,0.00016438,2]
[327339708,1715997041245,-501.73833322,0.00016438,2]
[327339709,1715997041254,-505.41350252,0.00016438,2]
[327339710,1715997041263,-501.32013921,0.00016438,2]
[327339711,1715997041272,-504.91874709,0.00016438,2]
[327339712,1715997041282,-504.77630118,0.00016438,2]
[327339713,1715997041291,-500.0,0.00016438,2]
[327339714,1715997041300,-511.68,0.00016438,2]
[327339715,1715997041309,-519.14313656,0.00016438,2]
[327339716,1715997041319,-501.87634161,0.00016438,2]
[327339717,1715997041328,-500.0,0.00016438,2]
[327339718,1715997041337,-508.7109615,0.00016438,2]
[327339719,1715997041346,-810.34,0.00016438,2]
[327339720,1715997041355,-158.80837085,0.00016438,2]
[327339721,1715997041364,-501.73481911,0.00016438,2]
[327339722,1715997041373,-207.31789753,0.00016438,2]
[327339723,1715997041382,-502.21349185,0.00016438,2]
[327339724,1715997041391,-501.87578921,0.00016438,2]
[327339725,1715997041400,-501.93659509,0.00016438,2]
[327339726,1715997041409,-506.60546792,0.00016438,2]
[327339727,1715997041418,-502.43960808,0.00016438,2]
[327339728,1715997041427,-500.77119324,0.00016438,2]
[327339729,1715997041436,-500.0,0.00016438,2]
[327339730,1715997041446,-505.00993559,0.00016438,2]
[327339731,1715997041455,-507.61820977,0.00016438,2]
[327339732,1715997041464,-503.11489218,0.00016438,2]
[327339733,1715997041473,-500.0,0.00016438,2]
[327339734,1715997041483,-514.7139242,0.00016438,2]
[327339735,1715997041492,-507.09461867,0.00016438,2]
[327339736,1715997041501,-160.13523699,0.00016438,2]
[327339737,1715997041511,-501.61604106,0.00016438,2]
[327339738,1715997041520,-500.0,0.00016438,2]
[327339739,1715997041529,-500.81510458,0.00016438,2]
[327339740,1715997041539,-503.41110516,0.00016438,2]
[327339741,1715997041548,-500.21504838,0.00016438,2]
[327339742,1715997041557,-648.32191241,0.00016438,2]
[327339743,1715997041567,-500.0,0.00016438,2]
[327339744,1715997041576,-504.00958737,0.00016438,2]
[327339745,1715997041585,-510.5525724,0.00016438,2]
[327339746,1715997041594,-501.38530356,0.00016438,2]
[327339747,1715997041603,-500.60321915,0.00016438,2]
[327339748,1715997041612,-500.0,0.00016438,2]
[327339749,1715997041621,-500.0,0.00016438,2]
[327339750,1715997041631,-501.0762932,0.00016438,2]
[327339751,1715997041640,-387.04821856,0.00016438,2]
[327339752,1715997041649,-500.0,0.00016438,2]
[327339753,1715997041658,-414.87102176,0.00016438,2]
[327339754,1715997041668,-188.12688385,0.00016438,2]
[327339755,1715997041677,-505.06299649,0.00016438,2]
[327339756,1715997041687,-500.28783267,0.00016438,2]
[327339757,1715997041697,-653.87,0.00016438,2]
[327339758,1715997041706,-500.0,0.00016438,2]
[327339759,1715997041715,-500.95129566,0.00016438,2]
[327339760,1715997041725,-500.0,0.00016438,2]
[327339761,1715997041734,-610.67,0.00016438,2]
[327339762,1715997041744,-506.53639279,0.00016438,2]
[327339763,1715997041753,-1074.9,0.00016438,2]
[327339764,1715997041763,-502.78888575,0.00016438,2]
[327339765,1715997041772,-608.56001064,0.00016438,2]
[327339766,1715997041782,-502.05997126,0.00016438,2]
[327339767,1715997041791,-5278.11,0.00016438,2]
[327339768,1715997041800,-502.17281274,0.00016438,2]
[327339769,1715997041809,-501.72219746,0.00016438,2]
[327339770,1715997041819,-502.21384019,0.00016438,2]
[327339771,1715997041829,-507.39045539,0.00016438,2]
[327339772,1715997041838,-623.82920468,0.00016438,2]
[327339773,1715997041847,-504.74218195,0.00016438,2]
[327339774,1715997041856,-502.14392903,0.00016438,2]
[327339775,1715997041866,-503.50385804,0.00016438,2]
[327339776,1715997041875,-500.0,0.00016438,2]
[327339777,1715997041884,-513.2078559,0.00016438,2]
[327339778,1715997041893,-500.0,0.00016438,2]
[327339779,1715997041902,-507.7976675,0.00016438,2]
[327339780,1715997041911,-500.0,0.00016438,2]
[327339781,1715997041920,-503.49732163,0.00016438,2]
[327339782,1715997041929,-500.0,0.00016438,2]
[327339783,1715997041938,-505.69511588,0.00016438,2]
[327339784,1715997041947,-500.0,0.00016438,2]
[327339785,1715997041956,-500.0,0.00016438,2]
[327339786,1715997041965,-511.70366749,0.00016438,2]
[327339787,1715997041974,-500.0,0.00016438,2]
[327339788,1715997041983,-500.0,0.00016438,2]
[327339789,1715997041992,-527.05136394,0.00016438,2]
[327339790,1715997042001,-384.92214262,0.00016438,2]
[327339791,1715997042010,-500.0,0.00016438,2]
[327339792,1715997042019,-500.0,0.00016438,2]
[327339793,1715997042030,-2566.13,0.00016438,2]
[327339794,1715997042039,-504.02582672,0.00016438,2]
[327339795,1715997042050,-500.0,0.00016438,2]
[327339796,1715997042062,-501.6171212,0.00016438,2]
[327339797,1715997042071,-500.0,0.00016438,2]
[327339798,1715997042080,-514.71251152,0.00016438,2]
[327339799,1715997042089,-500.0,0.00016438,2]
[327339800,1715997042099,-500.0,0.00016438,2]
[327339801,1715997042108,-500.0,0.00016438,2]
[327339802,1715997042117,-500.0,0.00016438,2]
[327339803,1715997042126,-500.0,0.00016438,2]
[327339804,1715997042137,-502.10785354,0.00016438,2]
[327339805,1715997042147,-3422.8,0.00016438,2]
[327339806,1715997042156,-505.15356841,0.00016438,2]
[327339807,1715997042165,-503.31528424,0.00016438,2]
[327339808,1715997042174,-500.0,0.00016438,2]
[327339809,1715997042184,-500.0,0.00016438,2]
[327339810,1715997042194,-500.0,0.00016438,2]
[327339811,1715997042203,-500.0,0.00016438,2]
[327339812,1715997042212,-500.0,0.00016438,2]
[327339813,1715997042222,-500.0,0.00016438,2]
[327339814,1715997042233,-500.0,0.00016438,2]
[327339815,1715997042243,-500.0,0.00016438,2]
[327339816,1715997042252,-500.0,0.00016438,2]
[327339817,1715997042261,-500.0,0.00016438,2]
[327339818,1715997042270,-501.99970545,0.00016438,2]
[327339819,1715997042281,-501.89116612,0.00016438,2]
[327339820,1715997042290,-500.0,0.00016438,2]
[327339821,1715997042299,-500.97931386,0.00016438,2]
[327339822,1715997042307,-500.0,0.00016438,2]
[327339823,1715997042317,-501.6096035,0.00016438,2]
[327339824,1715997042326,-502.51004455,0.00016438,2]
[327339825,1715997042335,-500.0,0.00016438,2]
[327339826,1715997042344,-515.44283181,0.00016438,2]
[327339827,1715997042354,-500.0,0.00016438,2]
[327339828,1715997042363,-678.91,0.00016438,2]
[327339829,1715997042372,-504.70226746,0.00016438,2]
[327339830,1715997042382,-25480.63,0.00016438,2]
[327339831,1715997042391,-551.31069447,0.00016443,2]
[327339832,1715997042400,-461.87848018,0.00016445,2]
[327339833,1715997042409,-12703.0,0.000165,2]
[327339834,1715997042418,-474.9,0.00016541,2]
[327339835,1715997042427,-474.9,0.00016541,3]
[327339836,1715997042436,-508.40436237,0.00016612,2]
[327339837,1715997042445,-417.06273246,0.00016658,2]
[327339838,1715997042454,-500.0,0.00016682,2]
[327339839,1715997042463,-4222.10020806,0.00016692,2]
[327339840,1715997042472,-239.60631677,0.00016709,2]
[327339841,1715997042481,-671.22,0.00016711,2]
[327339842,1715997042491,-671.22,0.00016711,2]
[327339843,1715997042500,-671.22,0.00016711,2]
[327339844,1715997042509,-500.0,0.00016711,2]
[327339845,1715997042518,-500.0,0.00016711,2]
[327339846,1715997042528,-500.0,0.00016711,2]
[327339847,1715997042537,-500.0,0.00016711,2]
[327339848,1715997042546,-500.0,0.00016711,2]
[327339849,1715997042556,-23408.03411016,0.00016712,3]
[327339850,1715997042565,-502.98881318,0.00016712,2]
[327339851,1715997042574,-500.0,0.00016712,2]
[327339852,1715997042584,-450.77460582,0.00016712,2]
[327339853,1715997042593,-500.0,0.00016712,2]
[327339854,1715997042603,-500.0,0.00016712,4]
[327339855,1715997042612,-165.19471803,0.00016712,2]
[327339856,1715997042621,-500.0,0.00016712,2]
[327339857,1715997042631,-181.75564386,0.00016712,2]
[327339858,1715997042639,-500.0,0.00016712,2]
[327339859,1715997042649,-500.0,0.00016712,2]
[327339860,1715997042659,-185.84017691,0.00016712,2]
[327339861,1715997042668,-500.0,0.00016712,2]
[327339862,1715997042677,-522.08954787,0.00016712,2]
[327339863,1715997042686,-1001.84547682,0.00016712,2]
[327339864,1715997042695,-501.65535195,0.00016712,2]
[327339865,1715997042704,-500.0,0.00016712,2]
[327339866,1715997042713,-386.31880676,0.00016712,2]
[327339867,1715997042722,-426.45753845,0.00016712,2]
[327339868,1715997042731,-506.91188355,0.00016712,2]
[327339869,1715997042741,-505.80038547,0.00016712,2]
[327339870,1715997042750,-500.0,0.00016712,2]
[327339871,1715997042759,-500.0,0.00016712,2]
[327339872,1715997042769,-500.0,0.00016712,2]
[327339874,1715997042779,-976.629867,0.00016712,2]
[327339876,1715997042789,-976.629867,0.00016712,2]
[327339878,1715997042798,-151.0,0.00016712,2]
[327339879,1715997042807,-177.35564,0.00016712,2]
[327339880,1715997042815,-438.827202,0.00016712,2]
[327339881,1715997042824,-177.35564,0.00016712,2]
[327339882,1715997042834,-438.827202,0.00016712,2]
[327339883,1715997042843,-2287.36,0.00016712,2]
[327339884,1715997042853,-248.338924,0.00016712,2]
[327339885,1715997042862,-151.0,0.00016712,2]
[327339886,1715997042871,-248.338924,0.00016712,2]
[327339888,1715997042880,-500.0,0.00016712,2]
[327339890,1715997042889,-230.495479,0.00016712,2]
[327339892,1715997042898,-4155.15,0.00016712,2]
[327339894,1715997042907,-500.0,0.00016712,2]
[327339895,1715997042916,-151.0,0.00016712,2]
[327339896,1715997042926,-500.0,0.00016712,2]
[327339897,1715997042935,-5652.97,0.00016712,2]
[327339898,1715997042945,-500.0,0.00016712,2]
[327339899,1715997042954,-500.0,0.00016712,2]
[327339900,1715997042963,-151.0,0.00016712,2]
[327339901,1715997042972,-500.0,0.00016712,2]
[327339902,1715997042981,-500.0,0.00016712,2]
[327339903,1715997042992,-166.773211,0.00016712,2]
[327339904,1715997043001,-3161.82,0.00016712,2]
[327339905,1715997043012,-500.0,0.00016712,2]
[327339906,1715997043021,-166.773211,0.00016712,2]
[327339908,1715997043032,-500.0,0.00016712,2]
[327339910,1715997043041,-500.0,0.00016712,2]
[327339912,1715997043051,-443.969272,0.00016712,2]
[327339914,1715997043064,-443.969272,0.00016712,2]
[327339916,1715997043074,-504.19262495,0.00016712,2]
[327339917,1715997043082,-280.67993501,0.00016712,2]
[327339918,1715997043091,-511.68,0.00016712,2]
[327339919,1715997043101,-154.406351,0.00016712,2]
[327339920,1715997043110,-509.89819883,0.00016712,2]
[327339921,1715997043119,-151.0,0.00016712,2]
[327339922,1715997043128,-810.34,0.00016712,2]
[327339923,1715997043140,-283.098274,0.00016712,2]
[327339924,1715997043149,-1332.935716,0.00016712,2]
[327339925,1715997043158,-448.60134487,0.00016712,2]
[327339926,1715997043168,-1332.935716,0.00016712,2]
[327339928,1715997043177,-500.0,0.00016712,2]
[327339930,1715997043186,-151.0,0.00016712,2]
[327339932,1715997043195,-584.52936566,0.00016712,2]
[327339934,1715997043205,-510.37824725,0.00016712,2]
[327339935,1715997043214,-500.0,0.00016712,2]
[327339937,1715997043224,-1360.791115,0.00016712,2]
[327339938,1715997043233,-500.0,0.00016712,2]
[327339939,1715997043242,-500.0,0.00016712,2]
[327339940,1715997043251,-1360.791115,0.00016712,2]
[327339941,1715997043260,-653.87,0.00016712,2]
[327339942,1715997043269,-565.66913045,0.00016712,2]
[327339943,1715997043279,-151.0,0.00016712,2]
[327339944,1715997043288,-151.0,0.00016712,2]
[327339945,1715997043297,-609.17484149,0.00016712,2]
[327339946,1715997043306,-610.67,0.00016712,2]
[327339947,1715997043315,-1074.9,0.00016712,2]
[327339949,1715997043325,-5278.11,0.00016712,2]
[327339950,1715997043334,-500.0,0.00016712,2]
[327339952,1715997043343,-500.0,0.00016712,2]
[327339954,1715997043353,-500.0,0.00016712,2]
[327339956,1715997043362,-151.0,0.00016712,2]
[327339958,1715997043371,-151.0,0.00016712,2]
[327339959,1715997043379,-3027.685831,0.00016712,2]
[327339961,1715997043389,-3027.685831,0.00016712,2]
[327339963,1715997043398,-500.0,0.00016712,2]
[327339964,1715997043407,-500.0,0.00016712,2]
[327339965,1715997043416,-2566.13,0.00016712,2]
[327339966,1715997043425,-3027.685831,0.00016712,2]
[327339968,1715997043434,-3027.685831,0.00016712,2]
[327339969,1715997043443,-500.0,0.00016712,2]
[327339970,1715997043452,-151.0,0.00016712,2]
[327339971,1715997043461,-298.022656,0.00016712,2]
[327339972,1715997043470,-500.0,0.00016712,2]
[327339973,1715997043480,-500.0,0.00016712,2]
[327339975,1715997043489,-500.0,0.00016712,2]
[327339976,1715997043498,-574.66929881,0.00016712,2]
[327339977,1715997043507,-500.0,0.00016712,2]
[327339978,1715997043517,-500.0,0.00016712,2]
[327339979,1715997043526,-1371.49169314,0.00016712,2]
[327339980,1715997043648,-2051.30830686,0.00016712,2]
[327339981,1715997043659,-500.0,0.00016712,2]
[327339982,1715997043668,-500.0,0.00016712,2]
[327339983,1715997043678,-500.0,0.00016712,2]
[327339984,1715997043687,-500.0,0.00016712,2]
[327339985,1715997043696,-500.0,0.00016712,2]
[327339986,1715997043705,-678.91,0.00016712,2]
[327339987,1715997043714,-151.0,0.00016712,2]
[327339988,1715997043723,-25480.63,0.00016712,2]
[327339989,1715997043733,-151.0,0.00016712,2]
[327339990,1715997043743,-620.18958958,0.00016716,2]
[327339991,1715997043752,-151.0,0.00016716,2]
[327339992,1715997043762,-1360.791115,0.00016716,2]
[327339993,1715997043884,-1360.791115,0.00016716,2]
[327339994,1715997043894,-500.0,0.00016757,2]
[327339995,1715997043904,-151.0,0.00016758,2]
[327339996,1715997043914,-151.0,0.00016758,2]
[327339997,1715997043924,-151.0,0.00016758,2]
[327339998,1715997043934,-151.0,0.00016758,2]
[327339999,1715997043942,-151.0,0.00016758,2]
[327340000,1715997043952,-151.0,0.00016758,2]
[327340001,1715997043961,-236.76892098,0.00016985,2]
[327340018,1715997064288,313.481267,0.00014202,2]
[327340026,1715997383420,500.0,0.00016438,4]
[327340031,1715997955174,-1008.0412453,0.00013699,2]
[327340032,1715997955194,-2799.24110633,0.00014215,2]
[327340033,1715998028094,-581.32291268,0.00014215,2]
[327340034,1715998028115,-372.24756509,0.00014216,2]
[327340035,1715998028135,-3625.72517751,0.00014217,2]
[327340036,1715998032103,-4967.0403859,0.00014217,2]
[327340037,1715998049095,-2714.93828503,0.00014217,2]
[327340038,1715998049123,-4584.60523086,0.00014217,2]
[327340047,1715998155204,-550.41379,0.00014139,2]
[327340048,1715998155225,-4384.55811974,0.00014217,2]
[327340049,1715998158121,-4623.13280096,0.00014217,2]
[327340050,1715998158142,-468.49,0.00014217,2]
[327340057,1715998207237,273.37336231,9.9e-05,2]
[327340058,1715998215952,4673.49006866,0.00014269,2]
[327340163,1715998238662,-234.92087203,0.00014217,2]
[327340165,1715998238672,-20226.50993134,0.00014269,2]
[327340168,1715998238681,-189.5809831,0.000148,2]
[327340170,1715998238691,-176.39287619,0.000149,2]
[327340173,1715998238700,-1087.59908362,0.000149,2]
[327340176,1715998238708,-2107.25657902,0.00015,2]
[327340178,1715998238717,-1149.07076386,0.00015,2]
[327340180,1715998238727,-80000.0,0.00015,2]
[327340182,1715998238736,-942.53705457,0.00015,2]
[327340184,1715998238745,-204.27807549,0.00015326,2]
[327340186,1715998238754,-176.39287617,0.00015328,2]